fUST/lending_fUST_20260118
["ID","MTS","AMOUNT","RATE_DAILY","PERIOD"]
[402596290,1768720133220,-639.84096808,0.00011298,2]
[402596291,1768720133356,-500.0,0.00011298,2]
[402596292,1768720133394,-500.0,0.00011298,2]
[402596293,1768720133431,-256.87031259,0.00011298,2]
[402596294,1768720133468,-500.0,0.00011298,2]
[402596295,1768720133510,-500.0,0.00011298,2]
[402596296,1768720133552,-500.0,0.00011298,2]
[402596297,1768720133593,-500.0,0.00011298,2]
[402596298,1768720133633,-500.0,0.00011298,2]
[402596299,1768720133674,-500.0,0.00011298,2]
[402596300,1768720133713,-500.0,0.00011298,2]
[402596301,1768720134139,-387.11724872,0.00011298,2]
[402596302,1768720134163,-112.88275128,0.00011298,2]
[402596303,1768720134173,-373.38662354,0.00011298,2]
[402596304,1768720135926,-126.61337646,0.00011298,2]
[402596305,1768720135967,-158.56871264,0.00011298,2]
[402596306,1768720136004,-4429.6458218,0.00011299,2]
[402596307,1768720136074,-570.3541782,0.00011299,2]
[402596308,1768720169753,-5000.0,0.00011186,2]
[402596309,1768720169793,-0.01,0.00011299,2]
[402596310,1768720169972,-299.99,0.00011299,2]
[402596311,1768720170004,-300.0,0.00011299,2]
[402596312,1768720170039,-288.82514573,0.000113,2]
[402596313,1768720170110,-8222.37970854,0.000113,2]
[402596314,1768720170137,-10000.01,0.000113,2]
[402596315,1768720172646,-10000.01,0.000113,2]
[402596319,1768720178741,-1440.11569425,0.00011187,2]
[402596320,1768720178774,-2723.21518667,0.000113,2]
[402596321,1768720178818,-1673.34823816,0.000113,2]
[402596322,1768720178887,-243.43,0.000113,2]
[402596323,1768720189700,202.12,9.474e-05,2]
[402596324,1768720197250,-269.49,0.00010202,2]
[402596325,1768720209591,1000.0,0.000154,120]
[402596343,1768720231967,-336.87,0.00010931,2]
[402596345,1768720231977,-573.0,0.00010931,2]
[402596347,1768720231987,-740.66018494,0.00011473,2]
[402596349,1768720231997,-252.04915657,0.0001152,2]
[402596351,1768720232007,-330.79760295,0.0001152,2]
[402596353,1768720232017,-300.0,0.0001152,2]
[402596355,1768720232027,-300.0,0.0001152,2]
[402596357,1768720232037,-300.0,0.0001152,2]
[402596360,1768720232047,-1200.0,0.0001152,2]
[402596363,1768720232056,-33317.94705048,0.00011521,2]
[402596431,1768720238050,-865.64963724,0.00011521,2]
[402596432,1768720238111,-1593.53974804,0.00011521,2]
[402596433,1768720238122,-4269.35212161,0.00011521,2]
[402596434,1768720238133,-2088.03168191,0.00011521,2]
[402596435,1768720238171,-2084.42943746,0.00011521,2]
[402596438,1768720240284,-833.49799299,0.00011521,2]
[402596443,1768720240466,-3e-08,0.00011521,2]
[402596444,1768720240527,-170.95732249,0.00011521,2]
[402596445,1768720240539,-74859.32147753,0.00011521,2]
[402596452,1768720243121,-15114.4382628,0.00011521,2]
[402596454,1768720243236,-771.99000221,0.00011521,2]
[402596487,1768720246172,-61613.20847959,0.00011521,2]
[402596492,1768720262931,263.7,8.222e-05,2]
[402596493,1768720263467,527.39,8.969e-05,2]
[402596494,1768720263773,791.09,9.716e-05,2]
[402596495,1768720265922,-721.6805224,0.00010464,2]
[402596496,1768720274296,-333.1094776,0.00010464,2]
[402596497,1768720293240,468.1500388,0.00010454,2]
[402596499,1768720329391,170.4312501,5.154e-05,2]
[402596501,1768720341535,239.62,8.04e-05,2]
[402596502,1768720341939,479.23,8.771e-05,2]
[402596503,1768720342346,718.85,9.502e-05,2]
[402596504,1768720342772,958.46,0.00010233,2]
[402596505,1768720347841,-305.90818753,0.00010682,2]
[402596506,1768720347872,-502.47,0.000109,2]
[402596507,1768720347905,-1198.08,0.00010964,2]
[402596508,1768720347936,-1872.60015519,0.00011024,2]
[402596509,1768720347967,-444.138,0.0001129,2]
[402596510,1768720347998,-178.401,0.0001129,2]
[402596511,1768720348029,-300.0,0.00011297,2]
[402596512,1768720353313,-500.0,0.00011298,2]
[402596513,1768720353345,-500.0,0.00011298,2]
[402596514,1768720353379,-500.0,0.00011298,2]
[402596515,1768720353412,-500.0,0.00011298,2]
[402596516,1768720353443,-500.0,0.00011298,2]
[402596517,1768720353475,-649.991,0.00011298,2]
[402596518,1768720356383,-9295.25597184,0.00011467,2]
[402596519,1768720390359,-300.0,0.00011466,2]
[402596520,1768720390400,-9400.01,0.00011467,2]
[402596521,1768720390603,-10000.01,0.00011467,2]
[402596522,1768720390741,-10000.01,0.00011467,2]
[402596523,1768720393215,-417.71157336,0.00011467,2]
[402596524,1768720393247,-1870.55,0.00011467,2]
[402596525,1768720394417,5423.48685328,0.00010563,2]
[402596527,1768720396274,-3274.28405398,0.00010563,2]
[402596528,1768720396386,-3451.44189204,0.00010563,2]
[402596529,1768720396438,-1125.08125468,0.0001152,2]
[402596530,1768720399394,-3874.91874532,0.0001152,2]
[402596531,1768720399423,-500.0,0.0001152,2]
[402596532,1768720399454,-500.0,0.0001152,2]
[402596533,1768720399532,-250.17250936,0.0001152,2]
[402596534,1768720399666,-46.11698037,0.0001152,2]
[402596535,1768720399900,-477.60107563,0.0001152,2]
[402596536,1768720399936,-500.0,0.0001152,2]
[402596537,1768720399973,-500.0,0.0001152,2]
[402596538,1768720400009,-500.0,0.0001152,2]
[402596539,1768720400044,-500.0,0.0001152,2]
[402596540,1768720400077,-500.0,0.0001152,2]
[402596541,1768720400109,-500.0,0.0001152,2]
[402596542,1768720400142,-500.0,0.0001152,2]
[402596543,1768720400174,-500.0,0.0001152,2]
[402596544,1768720400208,-452.573888,0.0001152,2]
[402596545,1768720400286,-47.426112,0.0001152,2]
[402596546,1768720400317,-500.0,0.0001152,2]
[402596547,1768720400347,-513.06669135,0.0001152,2]
[402596548,1768720400376,-500.0,0.0001152,2]
[402596549,1768720400406,-500.0,0.0001152,2]
[402596550,1768720400436,-500.0,0.0001152,2]
[402596551,1768720400466,-500.0,0.0001152,2]
[402596552,1768720400496,-500.0,0.0001152,2]
[402596553,1768720400527,-500.0,0.0001152,2]
[402596554,1768720400556,-500.0,0.0001152,2]
[402596555,1768720400588,-379.0243933,0.0001152,2]
[402596556,1768720400645,-120.9756067,0.0001152,2]
[402596557,1768720400678,-528.93722071,0.0001152,2]
[402596558,1768720400709,-500.0,0.0001152,2]
[402596559,1768720400739,-500.0,0.0001152,2]
[402596560,1768720400770,-500.0,0.0001152,2]
[402596561,1768720400800,-500.0,0.0001152,2]
[402596562,1768720400829,-500.0,0.0001152,2]
[402596563,1768720400858,-500.0,0.0001152,2]
[402596564,1768720418563,2700.18434518,0.00011521,2]
[402596565,1768720418610,1298.96565482,0.00011521,2]
[402596566,1768720423029,225.46,8.041e-05,2]
[402596567,1768720423441,450.92,8.772e-05,2]
[402596568,1768720424035,676.38,9.503e-05,2]
[402596569,1768720424439,901.84,0.00010234,2]
[402596570,1768720424857,1127.3,0.00010965,2]
[402596571,1768720429973,-2618.96,0.00011521,2]
[402596572,1768720430077,-10000.01,0.00011521,2]
[402596573,1768720430483,-10000.01,0.00011521,2]
[402596574,1768720430632,-10000.01,0.00011521,2]
[402596575,1768720430731,-10000.01,0.00011521,2]
[402596576,1768720430834,-10000.01,0.00011521,2]
[402596577,1768720430964,-10000.01,0.00011521,2]
[402596578,1768720442320,300.0,0.0001152,2]
[402596579,1768720453640,977.46511457,0.00010431,2]
[402596580,1768720453906,657.54007101,0.00011424,2]
[402596581,1768720456704,-1000.0,0.00011521,2]
[402596582,1768720459223,-1000.0,0.00011521,2]
[402596583,1768720459621,-1000.0,0.00011521,2]
[402596584,1768720459973,-1000.0,0.00011521,2]
[402596585,1768720461734,-1000.0,0.00011521,2]
[402596586,1768720462604,-1000.0,0.00011521,2]
[402596587,1768720462994,-1000.0,0.00011521,2]
[402596588,1768720463341,-1000.0,0.00011521,2]
[402596589,1768720464836,-1000.0,0.00011521,2]
[402596590,1768720466043,-1000.0,0.00011521,2]
[402596591,1768720467378,-1000.0,0.00011521,2]
[402596592,1768720468652,-1000.0,0.00011521,2]
[402596593,1768720469810,-1000.0,0.00011521,2]
[402596594,1768720471382,-1000.0,0.00011521,2]
[402596595,1768720501424,365.45,7.821e-05,2]
[402596596,1768720502311,300.0,0.0001152,2]
[402596597,1768720502346,730.9,8.532e-05,2]
[402596598,1768720502843,1096.35,9.243e-05,2]
[402596599,1768720503282,1461.8,9.954e-05,2]
[402596600,1768720503701,1827.25,0.00010665,2]
[402596601,1768720504123,2192.7,0.00011376,2]
[402596602,1768720508638,90.55481442,0.00011421,2]
[402596603,1768720508665,60.44518558,0.00011421,2]
[402596604,1768720509087,151.0,0.00011521,2]
[402596605,1768720509253,156.587,0.00011421,2]
[402596606,1768720509294,500.0,0.00011521,2]
[402596607,1768720509510,250.0,0.00011521,2]
[402596608,1768720509718,242.90877704,0.00011521,2]
[402596609,1768720509753,250.0,0.00011521,2]
[402596610,1768720509863,152.63099639,0.00011521,2]
[402596611,1768720509902,500.0,0.00011521,2]
[402596612,1768720510110,250.0,0.00011521,2]
[402596613,1768720510384,250.0,0.00011521,2]
[402596614,1768720510516,500.0,0.00011521,2]
[402596615,1768720510732,250.0,0.00011521,2]
[402596616,1768720510967,250.0,0.00011521,2]
[402596617,1768720511110,500.0,0.00011521,2]
[402596618,1768720511375,250.0,0.00011521,2]
[402596619,1768720511437,151.0,0.00011521,2]
[402596620,1768720511573,253.29454632,0.00011521,2]
[402596621,1768720511714,229.59497629,0.00011521,2]
[402596622,1768720511991,250.0,0.00011521,2]
[402596623,1768720512146,151.0,0.00011521,2]
[402596624,1768720512695,250.0,0.00011521,2]
[402596625,1768720512770,151.0,0.00011521,2]
[402596626,1768720513116,-4050.54851838,0.00011521,2]
[402596627,1768720513159,2000.0,0.00011521,2]
[402596628,1768720513210,-8000.01,0.00011521,2]
[402596629,1768720513239,250.0,0.00011521,2]
[402596630,1768720513280,-9750.01,0.00011521,2]
[402596631,1768720513396,151.0,0.00011521,2]
[402596632,1768720513508,-9849.01,0.00011521,2]
[402596633,1768720513644,162.380719,0.00011521,2]
[402596634,1768720513687,1487.16779938,0.00011521,2]
[402596635,1768720513713,512.83220062,0.00011521,2]
[402596636,1768720513852,250.0,0.00011521,2]
[402596637,1768720514017,151.0,0.00011521,2]
[402596638,1768720515876,-2150.738,0.00011521,2]
[402596639,1768720515911,-2000.0,0.00011521,2]
[402596640,1768720515946,-224.90368595,0.00011521,2]
[402596641,1768720515977,-151.0,0.00011521,2]
[402596642,1768720525006,-2000.0,0.00011521,2]
[402596643,1768720525272,-151.0,0.00011521,2]
[402596644,1768720525304,-2000.0,0.00011521,2]
[402596645,1768720525335,-151.0,0.00011521,2]
[402596646,1768720525364,-151.0,0.00011521,2]
[402596647,1768720525464,-2000.0,0.00011521,2]
[402596648,1768720525493,-151.0,0.00011521,2]
[402596649,1768720525523,-2000.0,0.00011521,2]
[402596650,1768720525554,-151.0,0.00011521,2]
[402596651,1768720525589,-151.0,0.00011521,2]
[402596652,1768720525651,-2000.0,0.00011521,2]
[402596653,1768720525683,-151.0,0.00011521,2]
[402596654,1768720525716,-151.0,0.00011521,2]
[402596655,1768720525749,-2000.0,0.00011521,2]
[402596656,1768720525780,-151.0,0.00011521,2]
[402596657,1768720525812,-151.0,0.00011521,2]
[402596658,1768720525915,-883.897183,0.00011521,2]
[402596659,1768720525946,-151.0,0.00011521,2]
[402596660,1768720525976,-151.0,0.00011521,2]
[402596661,1768720526008,-250.0,0.00011521,2]
[402596662,1768720526040,-151.0,0.00011521,2]
[402596663,1768720526071,-151.0,0.00011521,2]
[402596664,1768720526102,-151.0,0.00011521,2]
[402596665,1768720526134,-250.0,0.00011521,2]
[402596666,1768720526166,-151.0,0.00011521,2]
[402596667,1768720526196,-151.0,0.00011521,2]
[402596668,1768720526227,-151.0,0.00011521,2]
[402596669,1768720526257,-250.0,0.00011521,2]
[402596670,1768720526288,-151.0,0.00011521,2]
[402596671,1768720526318,-151.0,0.00011521,2]
[402596672,1768720526349,-151.0,0.00011521,2]
[402596673,1768720526383,-151.0,0.00011521,2]
[402596674,1768720526415,-162.380719,0.00011521,2]
[402596675,1768720526449,-151.0,0.00011521,2]
[402596676,1768720526481,-250.0,0.00011521,2]
[402596677,1768720526512,-151.0,0.00011521,2]
[402596678,1768720526545,-168.3888056,0.00011521,2]
[402596679,1768720526577,-151.0,0.00011521,2]
[402596680,1768720526609,-151.0,0.00011521,2]
[402596681,1768720526645,-151.0,0.00011521,2]
[402596682,1768720526680,-186.6765848,0.00011521,2]
[402596683,1768720526795,-63.3234152,0.00011521,2]
[402596684,1768720526829,-151.0,0.00011521,2]
[402596685,1768720526863,-151.0,0.00011521,2]
[402596686,1768720526898,-174.61919141,0.00011521,2]
[402596687,1768720526932,-151.0,0.00011521,2]
[402596688,1768720526963,-151.0,0.00011521,2]
[402596689,1768720526996,-250.0,0.00011521,2]
[402596690,1768720527026,-151.0,0.00011521,2]
[402596691,1768720527058,-158.45813353,0.00011521,2]
[402596692,1768720527089,-181.08010149,0.00011521,2]
[402596693,1768720527120,-151.0,0.00011521,2]
[402596694,1768720527150,-151.0,0.00011521,2]
[402596695,1768720527183,-250.0,0.00011521,2]
[402596696,1768720527214,-151.0,0.00011521,2]
[402596697,1768720527246,-187.78006525,0.00011521,2]
[402596698,1768720527278,-250.0,0.00011521,2]
[402596699,1768720527310,-151.0,0.00011521,2]
[402596700,1768720527345,-151.0,0.00011521,2]
[402596701,1768720527379,-194.72792766,0.00011521,2]
[402596702,1768720527413,-250.0,0.00011521,2]
[402596703,1768720527448,-151.0,0.00011521,2]
[402596704,1768720527483,-151.0,0.00011521,2]
[402596705,1768720527517,-201.93286099,0.00011521,2]
[402596706,1768720527553,-250.0,0.00011521,2]
[402596707,1768720529338,-151.0,0.00011521,2]
[402596708,1768720529347,-9.62763547,0.00011521,2]
[402596709,1768720529367,-151.0,0.00011521,2]
[402596710,1768720529387,-48.77674137,0.00011521,2]
[402596711,1768720529397,-102.22325863,0.00011521,2]
[402596712,1768720529419,-48.77674137,0.00011521,2]
[402596713,1768720529429,-145.95118629,0.00011521,2]
[402596714,1768720529444,-104.04881371,0.00011521,2]
[402596715,1768720529454,-145.95118629,0.00011521,2]
[402596716,1768720529470,-5.04881371,0.00011521,2]
[402596717,1768720529479,-145.95118629,0.00011521,2]
[402596718,1768720529496,-5.04881371,0.00011521,2]
[402596719,1768720529505,-145.95118629,0.00011521,2]
[402596720,1768720529522,-71.20115249,0.00011521,2]
[402596721,1768720529531,-130.7317085,0.00011521,2]
[402596722,1768720529552,-119.2682915,0.00011521,2]
[402596723,1768720529561,-130.7317085,0.00011521,2]
[402596724,1768720529578,-20.2682915,0.00011521,2]
[402596725,1768720529587,-151.0,0.00011521,2]
[402596726,1768720529597,-225.18697532,0.00011521,2]
[402596727,1768720529606,-250.0,0.00011521,2]
[402596728,1768720529616,-905.71134212,0.00011521,2]
[402596729,1768720552250,-2000.0,0.000158,120]
[402596730,1768720552362,-241.52180739,0.00022397,120]
[402596731,1768720552414,-172.47891556,0.00022718,120]
[402596732,1768720552465,-170.45138511,0.00022718,120]
[402596733,1768720552515,-192.37422722,0.00022718,120]
[402596734,1768720552567,-296.93386093,0.0002289,120]
[402596735,1768720552616,-161.4443793,0.00023041,120]
[402596736,1768720552671,-151.05437957,0.00023397,120]
[402596737,1768720552723,-151.05437957,0.00024397,120]
[402596738,1768720552778,-244.0,0.00025,120]
[402596739,1768720552826,-190.0,0.0002515,120]
[402596740,1768720552872,-151.05437957,0.00025397,120]
[402596741,1768720552921,-151.05437957,0.00026397,120]
[402596742,1768720552972,-151.05437957,0.00027397,120]
[402596743,1768720553020,-200.193078,0.00027397,120]
[402596744,1768720553067,-172.552376,0.00027397,120]
[402596745,1768720553113,-158.848642,0.00027397,120]
[402596746,1768720553168,-639.31,0.00027397,120]
[402596747,1768720553221,-500.0,0.00027397,120]
[402596748,1768720553277,-387.31,0.00027397,120]
[402596749,1768720553324,-500.0,0.00027397,120]
[402596750,1768720553371,-500.0,0.00027397,120]
[402596751,1768720553418,-500.0,0.00027397,120]
[402596752,1768720553465,-500.0,0.00027397,120]
[402596753,1768720553511,-500.0,0.00027397,120]
[402596754,1768720553557,-500.0,0.00027397,120]
[402596755,1768720553603,-306.31,0.00027397,120]
[402596756,1768720553652,-500.0,0.00027397,120]
[402596757,1768720553708,-500.0,0.00027397,120]
[402596758,1768720553756,-491.62,0.00027397,120]
[402596759,1768720553804,-501.21,0.00027397,120]
[402596760,1768720553852,-500.0,0.00027397,120]
[402596761,1768720553904,-500.0,0.00027397,120]
[402596762,1768720553953,-569.38,0.00027397,120]
[402596763,1768720554002,-510.39,0.00027397,120]
[402596764,1768720554051,-500.0,0.00027397,120]
[402596765,1768720554098,-500.0,0.00027397,120]
[402596766,1768720554144,-500.0,0.00027397,120]
[402596767,1768720554194,-575.72,0.00027397,120]
[402596768,1768720554243,-500.0,0.00027397,120]
[402596769,1768720554292,-398.47,0.00027397,120]
[402596770,1768720554338,-500.0,0.00027397,120]
[402596771,1768720554383,-500.0,0.00027397,120]
[402596772,1768720554429,-500.1162014,0.00027397,120]
[402596773,1768720554474,-500.0,0.00027397,120]
[402596774,1768720554529,-452.00417889,0.00027397,120]
[402596775,1768720554576,-500.0,0.00027397,120]
[402596776,1768720554629,-500.0,0.00027397,120]
[402596777,1768720554682,-500.0,0.00027397,120]
[402596778,1768720554732,-500.0,0.00027397,120]
[402596779,1768720554780,-500.0,0.00027397,120]
[402596780,1768720554828,-634.38,0.00027397,120]
[402596781,1768720554879,-500.0,0.00027397,120]
[402596782,1768720554939,-500.0,0.00027397,120]
[402596783,1768720554987,-517.04,0.00027397,120]
[402596784,1768720555037,-500.0,0.00027397,120]
[402596785,1768720555084,-399.0,0.00027397,120]
[402596786,1768720555131,-500.0,0.00027397,120]
[402596787,1768720555179,-500.0,0.00027397,120]
[402596788,1768720555227,-500.0,0.00027397,120]
[402596789,1768720555275,-500.58062487,0.00027397,120]
[402596790,1768720555320,-588.83,0.00027397,120]
[402596791,1768720555366,-500.0,0.00027397,120]
[402596792,1768720555411,-500.0,0.00027397,120]
[402596793,1768720555455,-289.24,0.00027397,120]
[402596794,1768720555501,-500.0,0.00027397,120]
[402596795,1768720555547,-163.72,0.00027397,120]
[402596796,1768720555592,-500.0,0.00027397,120]
[402596797,1768720555639,-500.0,0.00027397,120]
[402596798,1768720555692,-421.11,0.00027397,120]
[402596799,1768720555739,-500.0,0.00027397,120]
[402596800,1768720555789,-225.04,0.00027397,120]
[402596801,1768720556038,-500.0,0.00027397,120]
[402596802,1768720556103,-500.0,0.00027397,120]
[402596803,1768720556165,-500.0,0.00027397,120]
[402596804,1768720556226,-152.14,0.00027397,120]
[402596805,1768720556283,-500.0,0.00027397,120]
[402596806,1768720556335,-500.0,0.00027397,120]
[402596807,1768720556386,-500.0,0.00027397,120]
[402596808,1768720556435,-500.0,0.00027397,120]
[402596809,1768720556483,-500.0,0.00027397,120]
[402596810,1768720556531,-500.0,0.00027397,120]
[402596811,1768720556580,-500.0,0.00027397,120]
[402596812,1768720556632,-500.0,0.00027397,120]
[402596813,1768720556681,-500.0,0.00027397,120]
[402596814,1768720556728,-500.0,0.00027397,120]
[402596815,1768720556777,-249.38,0.00027397,120]
[402596816,1768720556827,-500.0,0.00027397,120]
[402596817,1768720556875,-500.0,0.00027397,120]
[402596818,1768720556924,-500.0,0.00027397,120]
[402596819,1768720556973,-500.0,0.00027397,120]
[402596820,1768720557021,-525.87,0.00027397,120]
[402596821,1768720557068,-500.0,0.00027397,120]
[402596822,1768720557114,-500.0,0.00027397,120]
[402596823,1768720557163,-500.0,0.00027397,120]
[402596824,1768720557211,-512.80850011,0.00027397,120]
[402596825,1768720557259,-500.0,0.00027397,120]
[402596826,1768720557307,-500.0,0.00027397,120]
[402596827,1768720557354,-500.0,0.00027397,120]
[402596828,1768720557416,-500.0,0.00027397,120]
[402596829,1768720557464,-628.58686223,0.00027397,120]
[402596830,1768720557513,-500.0,0.00027397,120]
[402596831,1768720557561,-500.0,0.00027397,120]
[402596832,1768720557610,-195.52,0.00027397,120]
[402596833,1768720557659,-500.0,0.00027397,120]
[402596834,1768720557707,-500.0,0.00027397,120]
[402596835,1768720557756,-500.0,0.00027397,120]
[402596836,1768720557802,-500.0,0.00027397,120]
[402596837,1768720557849,-158.63,0.00027397,120]
[402596838,1768720557896,-500.0,0.00027397,120]
[402596839,1768720557943,-500.0,0.00027397,120]
[402596840,1768720557989,-500.0,0.00027397,120]
[402596841,1768720558033,-568.4,0.00027397,120]
[402596842,1768720558085,-549.53,0.00027397,120]
[402596843,1768720558132,-500.0,0.00027397,120]
[402596844,1768720558188,-1475.68,0.00027397,120]
[402596845,1768720558235,-1475.68,0.00027397,120]
[402596846,1768720558282,-1475.68,0.00027397,120]
[402596847,1768720558326,-1475.68,0.00027397,120]
[402596848,1768720558369,-1475.68,0.00027397,120]
[402596849,1768720558411,-1475.68,0.00027397,120]
[402596850,1768720558453,-1475.68,0.00027397,120]
[402596851,1768720558495,-1475.68,0.00027397,120]
[402596852,1768720558537,-1475.68,0.00027397,120]
[402596853,1768720558580,-1475.68,0.00027397,120]
[402596854,1768720558622,-1475.68,0.00027397,120]
[402596855,1768720558671,-1475.68,0.00027397,120]
[402596856,1768720558717,-1475.68,0.00027397,120]
[402596857,1768720558769,-1475.68,0.00027397,120]
[402596858,1768720558820,-1475.68,0.00027397,120]
[402596859,1768720558871,-1475.68,0.00027397,120]
[402596860,1768720558921,-1475.68,0.00027397,120]
[402596861,1768720558973,-1475.68,0.00027397,120]
[402596862,1768720559020,-1475.68,0.00027397,120]
[402596863,1768720559068,-1475.68,0.00027397,120]
[402596864,1768720559117,-1475.68,0.00027397,120]
[402596865,1768720559165,-1475.68,0.00027397,120]
[402596866,1768720559213,-1475.68,0.00027397,120]
[402596867,1768720559262,-1475.8,0.00027397,120]
[402596868,1768720559308,-500.0,0.00027397,120]
[402596869,1768720559353,-500.0,0.00027397,120]
[402596870,1768720559398,-507.8615704,0.00027397,120]
[402596871,1768720559441,-500.0,0.00027397,120]
[402596872,1768720559486,-500.0,0.00027397,120]
[402596873,1768720559541,-633.1,0.00027397,120]
[402596874,1768720559596,-622.22,0.00027397,120]
[402596875,1768720559651,-520.6372105,0.00027397,120]
[402596876,1768720559706,-500.92834435,0.00027397,120]
[402596877,1768720559754,-580.04,0.00027397,120]
[402596878,1768720559803,-500.0,0.00027397,120]
[402596879,1768720559851,-500.0,0.00027397,120]
[402596880,1768720559900,-500.0,0.00027397,120]
[402596881,1768720559951,-500.0,0.00027397,120]
[402596882,1768720560001,-404.24,0.00027397,120]
[402596883,1768720560052,-500.0,0.00027397,120]
[402596884,1768720560105,-500.83170318,0.00027397,120]
[402596885,1768720560157,-500.0,0.00027397,120]
[402596886,1768720560210,-500.0,0.00027397,120]
[402596887,1768720560262,-500.0,0.00027397,120]
[402596888,1768720560317,-500.0,0.00027397,120]
[402596889,1768720560371,-500.0,0.00027397,120]
[402596890,1768720560420,-500.0,0.00027397,120]
[402596891,1768720560470,-500.0,0.00027397,120]
[402596892,1768720560520,-212.21,0.00027397,120]
[402596893,1768720560572,-500.0,0.00027397,120]
[402596894,1768720560623,-500.0,0.00027397,120]
[402596895,1768720560680,-274.56,0.00027397,120]
[402596896,1768720560890,-267.11570375,0.00027397,120]
[402596897,1768720560941,-500.0,0.00027397,120]
[402596898,1768720560995,-500.0,0.00027397,120]
[402596899,1768720561045,-200.41982327,0.00027397,120]
[402596900,1768720561095,-500.0,0.00027397,120]
[402596901,1768720561149,-500.0,0.00027397,120]
[402596902,1768720561199,-500.0,0.00027397,120]
[402596903,1768720561247,-500.0,0.00027397,120]
[402596904,1768720561296,-500.25449658,0.00027397,120]
[402596905,1768720561346,-500.55465981,0.00027397,120]
[402596906,1768720561393,-500.0,0.00027397,120]
[402596907,1768720561441,-570.32,0.00027397,120]
[402596908,1768720561500,-500.0,0.00027397,120]
[402596909,1768720561551,-500.0,0.00027397,120]
[402596910,1768720561603,-182.54,0.00027397,120]
[402596911,1768720561654,-500.0,0.00027397,120]
[402596912,1768720561710,-500.0,0.00027397,120]
[402596913,1768720561760,-500.0,0.00027397,120]
[402596914,1768720561809,-500.0,0.00027397,120]
[402596915,1768720561857,-237.61,0.00027397,120]
[402596916,1768720561907,-500.0,0.00027397,120]
[402596917,1768720561957,-500.0,0.00027397,120]
[402596918,1768720562005,-500.21847826,0.00027397,120]
[402596919,1768720562056,-500.0,0.00027397,120]
[402596920,1768720562109,-500.0,0.00027397,120]
[402596921,1768720562159,-538.24,0.00027397,120]
[402596922,1768720562208,-500.0,0.00027397,120]
[402596923,1768720562260,-507.55576593,0.00027397,120]
[402596924,1768720562310,-500.0,0.00027397,120]
[402596925,1768720562360,-500.0,0.00027397,120]
[402596926,1768720562410,-500.0,0.00027397,120]
[402596927,1768720562459,-500.0,0.00027397,120]
[402596928,1768720562509,-338.97,0.00027397,120]
[402596929,1768720562557,-583.26,0.00027397,120]
[402596930,1768720562607,-500.0,0.00027397,120]
[402596931,1768720562660,-500.0,0.00027397,120]
[402596932,1768720562716,-500.0,0.00027397,120]
[402596933,1768720562768,-500.0,0.00027397,120]
[402596934,1768720562821,-500.0,0.00027397,120]
[402596935,1768720562875,-500.0,0.00027397,120]
[402596936,1768720562928,-500.0,0.00027397,120]
[402596937,1768720562981,-500.0,0.00027397,120]
[402596938,1768720563037,-500.19,0.00027397,120]
[402596939,1768720563094,-500.0,0.00027397,120]